[Event "RUS-ch Youth U21 Girls 2017"]
[Site "Loo"]
[Date "2017.04.21"]
[Round "2"]
[White "Styazhkina, Anna"]
[Black "Dordzhieva, Dinara"]
[Result "1-0"]
[ECO "B84"]
[WhiteElo "2222"]
[BlackElo "2277"]
[Annotator "NA"]
[PlyCount "157"]
[EventDate "2017.??.??"]
[EventType "tourn"]
[EventCountry "RUS"]
[SourceTitle "playchess.com"]
[Source "ChessBase"]
[SourceQuality "1"]
[TimeControl "40/5400+30:1800+30"]

1. e4 {[%emt 0:00:00]} c5 {[%emt 0:00:05]} 2. Nf3 {[%emt 0:00:00]} d6 {[%emt 0:00:07]} 3. d4 {[%emt 0:00:00]} Nf6 {[%emt 0:00:06]} 4. Nc3 {[%emt 0:05:29]} cxd4 {[%emt 0:00:05]} 5. Nxd4 {[%emt 0:00:13]} a6 {[%emt 0:00:08]} 6. Be2 {[%emt 0:00:24]} e6 {[%emt 0:00:13]} 7. f4 {[%emt 0:00:45]} Nc6 {[%emt 0:04:18]} 8. Be3 {[%emt 0:05:43] LiveBook: 174 Games} Be7 {[%emt 0:00:36]} 9. O-O {[%emt 0:00:40]} O-O {[%emt 0:00:08]} 10. Qe1 {[%emt 0:00:55]} Nxd4 {[%emt 0:03:29]} 11. Bxd4 {[%emt 0:00:10]} b5 {[%emt 0:00:04]} 12. a3 {[%emt 0:01:29]} Bb7 {[%emt 0:01:11]} 13. Qg3 {[%emt 0:01:09]} g6 {[%emt 0:01:21]} 14. Bd3 {[%emt 0:02:02]} Nh5 {[%emt 0:01:04]} 15. Qh3 {[%emt 0:01:04] [#]} Nxf4 $1 {[%emt 0:04:50]} 16. Rxf4 {[%emt 0:07:05]} e5 {[%emt 0:00:07]} 17. Bxe5 {[%emt 0:05:05]} dxe5 {[%emt 0:00:05]} 18. Rff1 {[%emt 0:00:19]} Rc8 {[%emt 0:05:13]} 19. Ne2 {[%emt 0:05:44]} Bf6 {[%emt 0:20:52]} 20. a4 {[%emt 0:04:05]} b4 {[%emt 0:19:05]} 21. b3 {[%emt 0:00:39]} Bg7 {[%emt 0:01:23]} 22. Rf2 {[%emt 0:01:06]} a5 {[%emt 0:07:04]} 23. Raf1 {[%emt 0:00:56]} Qb6 {[%emt 0:00:17]} 24. Kh1 {[%emt 0:00:52]} Ba6 {[%emt 0:05:41]} 25. c4 {[%emt 0:06:15]} Rc7 {[%emt 0:06:13]} 26. Ng1 {[%emt 0:06:54]} Bb7 {[%emt 0:05:22]} 27. Nf3 {[%emt 0:06:18]} f6 {[%emt 0:01:11]} 28. Rd2 {[%emt 0:04:10]} Bc8 {[%emt 0:02:18]} 29. Qh4 {[%emt 0:01:30]} Rd7 {[%emt 0:03:18]} 30. Ne1 {[%emt 0:31:16]} Rfd8 {[%emt 0:04:09]} 31. Qg3 {[%emt 0:00:19]} Qc5 {[%emt 0:01:58]} 32. Rdf2 {[%emt 0:00:40]} Bb7 {[%emt 0:00:47]} 33. h4 {[%emt 0:01:04]} Qd4 {[%emt 0:01:15]} 34. Re2 {[%emt 0:01:08]} Qc3 {[%emt 0:01:24]} 35. Rf3 {[%emt 0:00:35]} Qc1 {[%emt 0:00:10]} 36. Rc2 {[%emt 0:00:50]} Qd1 {[%emt 0:01:39]} 37. Kh2 {[%emt 0:00:57]} Bh6 {[%emt 0:00:51]} 38. Be2 {[%emt 0:00:30]} Qd4 {[%emt 0:00:39]} 39. Qg4 {[%emt 0:00:30]} f5 {[%emt 0:00:33]} 40. Rxf5 {[%emt 0:00:00]} Qxe4 {[%emt 0:00:16]} 41. Rf1 {[%emt 0:04:01]} Rd4 {[%emt 0:11:04]} 42. Qe6+ {[%emt 0:03:01]} Kh8 {[%emt 0:00:05]} 43. g3 {[%emt 0:07:16]} Bc8 {[%emt 0:08:56]} 44. Qe7 {[%emt 0:01:28]} R4d7 {[%emt 0:04:49]} 45. Qc5 {[%emt 0:03:26]} Qe3 {[%emt 0:04:05]} 46. Qxa5 {[%emt 0:06:59]} Bb7 {[%emt 0:04:17]} ({But not} 46... Rd2 $2 47. Ng2 Qd4 48. Rxd2 Bxd2 49. Qc7 $18) 47. Qxb4 {[%emt 0:00:48]} Be4 {[%emt 0:00:23]} 48. Ra2 {[%emt 0:04:41]} Rd2 {[%emt 0:00:18]} 49. Rxd2 {[%emt 0:00:05]} Qxd2 {[%emt 0:00:06]} 50. Qxd2 {[%emt 0:03:00]} Rxd2 {[%emt 0:00:02]} 51. Rf2 {[%emt 0:00:25]} Be3 {[%emt 0:00:04]} 52. Nf3 {[%emt 0:00:33]} Rb2 {[%emt 0:02:09]} (52... Bxf3 $1 $19 {and Black stays clearly on top.} 53. Rxf3 Rxe2+ 54. Kh3 e4 55. Rf8+ Kg7) 53. Rg2 {[%emt 0:00:46]} Bd4 $2 {[%emt 0:00:29]} (53... Bc6 $17 {stays on course.} 54. a5 Rxb3 55. Nxe5 Bxg2 56. Kxg2 Ra3) 54. Bd1 {[%emt 0:01:05]} Rb1 {[%emt 0:00:03]} 55. Bc2 {[%emt 0:00:19]} Bxc2 {[%emt 0:00:28]} 56. Rxc2 {[%emt 0:00:20]} Rxb3 {[%emt 0:00:03]} 57. Nd2 {[%emt 0:00:53]} Ra3 {[%emt 0:01:24]} 58. c5 {[%emt 0:00:18]} Rxa4 {[%emt 0:00:09]} 59. c6 {[%emt 0:00:07]} Ra8 {[%emt 0:00:08]} 60. Ne4 {[%emt 0:00:33]} Bb6 {[%emt 0:00:31]} 61. Rb2 {[%emt 0:00:29]} Bc7 {[%emt 0:00:36]} (61... Ra6 {was necessary.} 62. Nc5 Bxc5 63. Rb8+ (63. c7 Rc6 64. Rb8+ Kg7 $16) 63... Kg7) 62. Rb7 {[%emt 0:00:27]} Rc8 {[%emt 0:00:03]} 63. Nf6 {[%emt 0:00:59]} e4 {[%emt 0:00:10]} 64. Nxe4 {[%emt 0:00:32]} (64. Kg2 $142) 64... Bxg3+ {[%emt 0:00:15]} 65. Kxg3 {[%emt 0:00:13]} Rxc6 {[%emt 0:00:01]} 66. Kf4 {[%emt 0:00:23]} Rc4 $2 {[%emt 0:02:02]} (66... h6 $18 67. Ke5 Kg8) 67. Ke5 {[%emt 0:00:22]} Ra4 {[%emt 0:00:43]} 68. Rc7 {[%emt 0:01:07]} (68. Nf6 $142 Ra5+ 69. Kd4 Ra4+ 70. Kc5 Ra5+ 71. Kb4 Rh5 72. Kc4 Rxh4+ 73. Kd5) 68... Rb4 {[%emt 0:00:08]} 69. Kf6 {[%emt 0:00:28]} Rb6+ {[%emt 0:01:08]} 70. Kf7 {[%emt 0:00:24]} Rb8 {[%emt 0:00:30]} 71. Nf6 {[%emt 0:00:27]} Ra8 {[%emt 0:00:30]} 72. Ke6 {[%emt 0:00:21]} Ra6+ {[%emt 0:00:19]} 73. Ke5 {[%emt 0:00:27]} Ra5+ {[%emt 0:00:02]} 74. Ke6 {[%emt 0:00:32]} Ra6+ {[%emt 0:00:03]} 75. Kf7 {[%emt 0:00:13]} Ra8 {[%emt 0:00:02]} 76. Re7 {[%emt 0:00:08]} Rb8 {[%emt 0:00:29]} 77. Re8+ {[%emt 0:00:15]} Rxe8 {[%emt 0:00:05]} 78. Nxe8 {[%emt 0:00:07]} h5 {[%emt 0:01:09]} 79. Nf6 {[%emt 0:00:14]} 1-0

[Event "RUS-ch Youth U21 Girls 2017"]
[Site "Loo"]
[Date "2017.04.21"]
[Round "2"]
[White "Khokhlova, Daria"]
[Black "Bykova, Anastasia"]
[Result "1/2-1/2"]
[ECO "D11"]
[WhiteElo "2175"]
[BlackElo "2241"]
[Annotator "NA"]
[PlyCount "85"]
[EventDate "2017.??.??"]
[EventType "tourn"]
[EventCountry "RUS"]
[SourceTitle "playchess.com"]
[Source "ChessBase"]
[SourceQuality "1"]
[TimeControl "40/5400+30:1800+30"]

1. d4 {[%emt 0:00:00]} d5 {[%emt 0:00:05]} 2. c4 {[%emt 0:00:00]} c6 {[%emt 0:00:03]} 3. Nf3 {[%emt 0:00:00]} Nf6 {[%emt 0:00:06]} 4. e3 {[%emt 0:00:00]} g6 {[%emt 0:00:05]} 5. b3 {[%emt 0:07:00] LiveBook: 20 Games} Bg7 {[%emt 0:00:19] D70: Grünfeld: Unusual White 3rd moves (met by ...d5)} 6. Bb2 {[%emt 0:02:03]} Ne4 {[%emt 0:07:36]} (6... Bg4 7. Nbd2 Ne4 8. Be2 Nxd2 9. Qxd2 Nd7 10. cxd5 cxd5 11. Qb4 Qb6 12. Qxb6 Nxb6 13. Ba3 Bxf3 14. Bxf3 {½-½ (42) Volkov,S (2614)-Neverov,V (2508) St Petersburg 2011}) 7. Bd3 $146 {[%emt 0:04:48]} (7. Nbd2 Bf5 8. Be2 O-O 9. O-O Nd7 10. Nxe4 Bxe4 11. Qd2 Nf6 12. Ne5 Bf5 13. cxd5 Nxd5 {1-0 (60) Jedynak,R (2494)-Urban,K (2456) Lublin 2009}) 7... c5 {[%emt 0:06:24]} 8. O-O {[%emt 0:03:32]} cxd4 {[%emt 0:05:22]} 9. Nxd4 {[%emt 0:07:16]} O-O {[%emt 0:04:21]} 10. cxd5 {[%emt 0:03:15]} Qxd5 {[%emt 0:00:19]} 11. Qf3 {[%emt 0:02:46]} Nf6 {[%emt 0:02:52]} 12. e4 {[%emt 0:10:21]} (12. Nd2 $14) 12... Qh5 {[%emt 0:00:55]} 13. Qg3 {[%emt 0:03:43]} Bd7 {[%emt 0:08:37]} 14. e5 {[%emt 0:06:24]} Nd5 {[%emt 0:03:39]} 15. f4 {[%emt 0:01:29]} Nc6 {[%emt 0:04:54]} 16. Be2 {[%emt 0:03:49]} Qh6 {[%emt 0:00:12]} 17. Nxc6 {[%emt 0:01:51]} Bxc6 {[%emt 0:00:29]} 18. Nd2 {[%emt 0:02:07]} f6 {[%emt 0:05:07]} 19. exf6 {[%emt 0:03:44]} Bxf6 {[%emt 0:00:40]} 20. Bxf6 {[%emt 0:01:08]} Rxf6 {[%emt 0:00:19]} 21. Bc4 {[%emt 0:01:16]} Kh8 {[%emt 0:06:42]} 22. Ne4 {[%emt 0:05:50]} Rf5 {[%emt 0:00:23]} 23. Bxd5 {[%emt 0:02:32]} Rxd5 {[%emt 0:01:48]} 24. Qe3 {[%emt 0:04:35]} Qg7 {[%emt 0:05:14]} 25. Rad1 {[%emt 0:02:04]} Rxd1 {[%emt 0:05:53]} 26. Rxd1 {[%emt 0:00:02]} e5 {[%emt 0:00:25]} 27. fxe5 {[%emt 0:01:00]} Qxe5 {[%emt 0:00:25]} 28. Qc3 {[%emt 0:01:21]} Qxc3 {[%emt 0:02:11]} 29. Nxc3 {[%emt 0:00:02]} Kg7 {[%emt 0:01:26]} 30. g3 {[%emt 0:03:49]} a5 {[%emt 0:02:00]} 31. Rd2 {[%emt 0:04:06]} Kf6 $11 {[%emt 0:02:08]} 32. Re2 {[%emt 0:01:11]} Rd8 {[%emt 0:01:46]} 33. Kf2 {[%emt 0:00:58]} Kf5 {[%emt 0:00:48]} 34. h3 {[%emt 0:01:20]} h5 {[%emt 0:01:44]} 35. Ke3 {[%emt 0:02:08]} g5 {[%emt 0:03:16]} 36. Rf2+ {[%emt 0:00:18]} Ke5 {[%emt 0:00:43]} 37. g4 {[%emt 0:01:09]} hxg4 {[%emt 0:05:34]} 38. hxg4 {[%emt 0:00:01]} Bd7 {[%emt 0:01:35]} 39. Ne4 {[%emt 0:00:39]} Bxg4 {[%emt 0:02:20]} 40. Nxg5 {[%emt 0:00:00]} Rg8 {[%emt 0:02:39]} 41. Nf3+ {[%emt 0:01:54]} Bxf3 {[%emt 0:00:33]} 42. Rxf3 {[%emt 0:00:01]} Rg2 {[%emt 0:00:39]} 43. Rf7 {[%emt 0:00:06]} 1/2-1/2

[Event "RUS-ch Youth U21 Girls 2017"]
[Site "Loo"]
[Date "2017.04.21"]
[Round "2"]
[White "Rodionova, Daria"]
[Black "Dimitrova, Aleksandra"]
[Result "0-1"]
[ECO "B42"]
[WhiteElo "2164"]
[BlackElo "2246"]
[Annotator "NA"]
[PlyCount "96"]
[EventDate "2017.??.??"]
[EventType "tourn"]
[EventCountry "RUS"]
[SourceTitle "playchess.com"]
[Source "ChessBase"]
[SourceQuality "1"]
[TimeControl "40/5400+30:1800+30"]

1. e4 {[%emt 0:00:00]} c5 {[%emt 0:00:04]} 2. Nf3 {[%emt 0:00:00]} e6 {[%emt 0:00:04]} 3. d4 {[%emt 0:00:00]} cxd4 {[%emt 0:00:04]} 4. Nxd4 {[%emt 0:00:00]} a6 {[%emt 0:00:04]} 5. Bd3 {[%emt 0:00:13]} Bc5 {[%emt 0:00:06]} 6. Nb3 {[%emt 0:00:16]} Be7 {[%emt 0:00:04]} 7. Qg4 {[%emt 0:00:20]} Bf6 {[%emt 0:00:06] B42: Sicilian: Kan Variation: 5 Bd3} (7... g6 8. Qe2 d6 9. c4 Nc6 10. Nc3 Ne5 11. O-O Nf6 12. Bh6 Nfg4 13. Bg7 Rg8 14. Bxe5 Nxe5 15. f4 Nc6 16. Kh1 {½-½ (45) Bologan,V (2640)-Vitiugov,N (2726) Tallinn 2016}) 8. Qg3 {[%emt 0:00:33]} Nc6 {[%emt 0:00:17]} 9. N1d2 {[%emt 0:00:29] LiveBook: 13 Games} d5 {[%emt 0:00:13]} 10. exd5 {[%emt 0:16:03]} exd5 {[%emt 0:00:05]} 11. O-O {[%emt 0:00:51]} Nge7 {[%emt 0:00:08]} 12. Nf3 {[%emt 0:10:59]} O-O {[%emt 0:02:17]} 13. c3 {[%emt 0:08:12]} Nf5 {[%emt 0:03:02]} 14. Qf4 $146 {[%emt 0:05:26]} ({Much worse is} 14. Qh3 g6 $11) (14. Bxf5 Bxf5 15. Bg5 {½-½ (22) Lampert,J (2243)-Carow,J (2195) Oberhof 2012}) 14... Nce7 {[%emt 0:11:05]} 15. Rd1 {[%emt 0:04:26]} Ng6 {[%emt 0:05:32]} 16. Qd2 {[%emt 0:01:57]} Re8 {[%emt 0:11:29]} 17. Bxf5 {[%emt 0:20:34]} Bxf5 {[%emt 0:00:07]} 18. Qxd5 {[%emt 0:01:23]} Qxd5 {[%emt 0:17:10]} 19. Rxd5 {[%emt 0:00:07]} Nh4 {[%emt 0:05:43]} 20. Nbd2 {[%emt 0:03:43]} Bg4 {[%emt 0:20:02]} 21. Kf1 $11 {[%emt 0:19:39]} Be6 {[%emt 0:04:29]} 22. Rd3 {[%emt 0:02:55]} Nxf3 {[%emt 0:05:29]} 23. Rxf3 {[%emt 0:00:14]} Bg4 {[%emt 0:00:14]} 24. Re3 {[%emt 0:01:57]} Rxe3 {[%emt 0:00:24]} 25. fxe3 {[%emt 0:00:02]} Rd8 {[%emt 0:02:24]} 26. Kf2 {[%emt 0:00:09]} Bh4+ {[%emt 0:05:15]} 27. g3 {[%emt 0:00:06]} Be7 {[%emt 0:00:44]} 28. Nb3 {[%emt 0:00:36]} Rd3 {[%emt 0:01:11]} 29. Bd2 {[%emt 0:01:56]} a5 {[%emt 0:01:34]} 30. Ke1 {[%emt 0:00:45]} Rd5 {[%emt 0:02:16]} 31. c4 {[%emt 0:00:51]} Rh5 {[%emt 0:00:06]} 32. h4 {[%emt 0:00:44]} Bd6 {[%emt 0:00:54]} 33. Kf2 {[%emt 0:00:31]} Rf5+ {[%emt 0:00:16]} 34. Kg2 {[%emt 0:00:23]} Rf3 {[%emt 0:00:16]} 35. Be1 {[%emt 0:00:20]} a4 {[%emt 0:01:51]} 36. Nd4 {[%emt 0:00:45]} Rxe3 {[%emt 0:00:02]} 37. Bf2 {[%emt 0:00:27]} Rd3 {[%emt 0:01:38]} 38. Re1 {[%emt 0:00:32]} h5 {[%emt 0:00:43]} 39. Nb5 {[%emt 0:00:32]} Bb4 {[%emt 0:00:49]} 40. Re8+ {[%emt 0:00:00]} Kh7 {[%emt 0:00:07]} 41. a3 {[%emt 0:15:37]} Bd2 {[%emt 0:02:20]} 42. Re7 {[%emt 0:09:54]} Kg6 {[%emt 0:07:27]} 43. Nd4 {[%emt 0:01:43]} b6 {[%emt 0:02:53]} 44. Ne2 {[%emt 0:02:42]} Rb3 {[%emt 0:09:39]} 45. Bd4 {[%emt 0:00:46]} Be6 {[%emt 0:00:45]} 46. Rc7 {[%emt 0:01:12]} Kf5 {[%emt 0:06:12]} 47. Bxg7 {[%emt 0:01:48]} Kg4 {[%emt 0:00:46]} 48. Be5 {[%emt 0:00:44]} Re3 {[%emt 0:00:31]} 0-1

[Event "RUS-ch Youth U21 Girls 2017"]
[Site "Loo"]
[Date "2017.04.22"]
[Round "3"]
[White "Shuvalova, Polina"]
[Black "Rodionova, Daria"]
[Result "1/2-1/2"]
[ECO "D85"]
[WhiteElo "2376"]
[BlackElo "2164"]
[Annotator "NA"]
[PlyCount "80"]
[EventDate "2017.??.??"]
[EventType "tourn"]
[EventCountry "RUS"]
[SourceTitle "playchess.com"]
[Source "ChessBase"]
[SourceQuality "1"]
[TimeControl "40/5400+30:1800+30"]

1. d4 {[%emt 0:00:00]} Nf6 {[%emt 0:00:05]} 2. c4 {[%emt 0:00:00]} g6 {[%emt 0:00:04]} 3. Nc3 {[%emt 0:00:00]} d5 {[%emt 0:00:02]} 4. cxd5 {[%emt 0:00:00]} Nxd5 {[%emt 0:00:03]} 5. e4 {[%emt 0:00:00]} Nxc3 {[%emt 0:00:04]} 6. bxc3 {[%emt 0:00:00]} Bg7 {[%emt 0:00:04]} 7. Be3 {[%emt 0:00:00]} c5 {[%emt 0:00:40]} 8. Qd2 {[%emt 0:00:00]} O-O {[%emt 0:03:24]} 9. Nf3 {[%emt 0:00:16]} Qc7 {[%emt 0:11:21] D85: Exchange Grünfeld: Unusual White 7th moves and lines with 7 Nf3} (9... Qa5 10. Rc1 Bg4 11. Ng5 b5 12. h3 Bd7 13. Be2 e6 14. d5 Qc7 15. c4 exd5 16. exd5 b4 17. O-O a5 18. Bf3 Qb6 19. h4 {½-½ (51) Zubov,A (2601)-Savchenko,B (2612) Pavlodar 2015}) 10. Be2 {[%emt 0:02:03]} Rd8 {[%emt 0:02:00]} 11. O-O {[%emt 0:01:21]} b6 $146 {[%emt 0:06:19]} (11... Nc6 12. Rac1 Bg4 13. h3 Bxf3 14. Bxf3 cxd4 15. cxd4 Bxd4 16. Bxd4 e5 17. Bxe5 Qxe5 18. Qe3 Rd4 19. Rfd1 Rad8 20. Rxd4 Rxd4 {1-0 (57) Kostyra,S (2336)-Nasuta,G (2130) Bialystok 2010}) 12. Rab1 {[%emt 0:03:48]} e5 {[%emt 0:11:54]} 13. Bg5 {[%emt 0:16:41]} f6 {[%emt 0:11:58]} 14. Bc4+ {[%emt 0:05:15]} Kf8 {[%emt 0:13:20]} 15. Nxe5 {[%emt 0:03:21]} fxg5 {[%emt 0:18:58] [#]} 16. f4 $1 {[%emt 0:01:38]} ({Not} 16. Qxg5 Qe7 17. Qf4+ Qf6 18. Qxf6+ Bxf6 $11) 16... Ke8 {[%emt 0:05:17]} 17. Qf2 {[%emt 0:15:49]} Ba6 {[%emt 0:06:31]} (17... cxd4 $14 18. cxd4 (18. fxg5 Ba6 19. Rb5 dxc3 20. Bf7+ Ke7 $11) 18... Ba6 19. Bxa6 Nxa6) 18. Bxa6 {[%emt 0:05:02]} Nxa6 {[%emt 0:00:11]} 19. fxg5 {[%emt 0:00:22]} (19. Qe2 $14 c4 20. Qb2 (20. Qxc4 $2 Qxc4 21. Nxc4 Rac8 $19)) 19... cxd4 {[%emt 0:04:07]} 20. cxd4 {[%emt 0:00:49]} Bxe5 {[%emt 0:00:45]} 21. Qf8+ {[%emt 0:06:13]} Kd7 {[%emt 0:00:04]} 22. Rf7+ {[%emt 0:02:03]} Kc8 $1 {[%emt 0:00:14]} 23. Rxc7+ {[%emt 0:00:40]} Nxc7 {[%emt 0:00:08]} 24. Qf3 {[%emt 0:01:08]} Bxd4+ {[%emt 0:03:20]} 25. Kh1 {[%emt 0:00:03] [#]} Be5 $1 {[%emt 0:01:09]} 26. Rd1 {[%emt 0:09:03]} Kb7 {[%emt 0:00:28]} 27. g3 {[%emt 0:00:05]} Rxd1+ {[%emt 0:00:45]} 28. Qxd1 {[%emt 0:00:06] [#]} Kc6 {[%emt 0:00:30]} (28... Rg8 $1 $19 29. Kg2 Rg7) 29. Kg2 {[%emt 0:01:08]} (29. Qb3 $15) 29... b5 $17 {[%emt 0:00:38]} 30. Qc2+ {[%emt 0:02:47]} Kd6 {[%emt 0:00:29]} 31. Qb3 {[%emt 0:00:30]} a6 {[%emt 0:00:35]} 32. Qf7 {[%emt 0:04:47]} Rh8 {[%emt 0:00:09]} 33. h4 {[%emt 0:00:08]} Ne6 {[%emt 0:00:41]} 34. g4 {[%emt 0:01:03]} Nf4+ {[%emt 0:00:21]} 35. Kf3 {[%emt 0:02:09]} Ne6 {[%emt 0:00:45]} 36. Ke2 {[%emt 0:02:10]} Nf4+ {[%emt 0:00:34]} 37. Kf3 {[%emt 0:00:14]} Ne6 {[%emt 0:00:27]} 38. Ke2 {[%emt 0:00:01]} Nd4+ {[%emt 0:00:32]} 39. Kd3 {[%emt 0:00:40]} Ne6 {[%emt 0:00:15]} 40. Ke2 Nf4+ {[%emt 0:00:36]} 1/2-1/2

[Event "RUS-ch Youth U21 Girls 2017"]
[Site "Loo"]
[Date "2017.04.22"]
[Round "3"]
[White "Obolentseva, Alexandra"]
[Black "Styazhkina, Anna"]
[Result "1-0"]
[ECO "A22"]
[WhiteElo "2346"]
[BlackElo "2222"]
[Annotator "NA"]
[PlyCount "96"]
[EventDate "2017.??.??"]
[EventType "tourn"]
[EventCountry "RUS"]
[SourceTitle "playchess.com"]
[Source "ChessBase"]
[SourceQuality "1"]
[TimeControl "40/5400+30:1800+30"]

1. c4 {[%emt 0:00:00]} e5 {[%emt 0:00:21]} 2. Nc3 {[%emt 0:00:00]} Nf6 {[%emt 0:00:13]} 3. g3 {[%emt 0:00:00]} d5 {[%emt 0:00:11]} 4. cxd5 {[%emt 0:00:00]} Nxd5 {[%emt 0:00:06]} 5. Bg2 {[%emt 0:00:00]} Nb6 {[%emt 0:00:10]} 6. e3 {[%emt 0:00:04]} Nc6 {[%emt 0:00:08] A22: English Opening: 1...e5 2 Nc3 Nf6} 7. Nge2 {[%emt 0:00:06]} Bg4 {[%emt 0:04:18]} (7... h5 8. h3 h4 9. g4 f5 10. d4 exd4 11. exd4 fxg4 12. Qd3 Qf6 13. Ne4 Bb4+ 14. Bd2 {0-1 (46) Caruana,F (2804)-Vachier Lagrave,M (2789) Paris 2016}) 8. h3 {[%emt 0:00:08]} Bf5 {[%emt 0:01:20]} 9. d4 {[%emt 0:00:09]} Nb4 {[%emt 0:05:23]} 10. Ne4 $146 {[%emt 0:00:06]} (10. O-O Bc2 11. Qe1 Bg6 12. f4 exf4 13. Nxf4 Bd6 14. Nxg6 hxg6 {1-0 (44) Christiansen,J (2428)-Roesemann,R (2265) Marianske Lazne 2017}) 10... exd4 {[%emt 0:11:00]} (10... Qe7 $11 11. f3 O-O-O) 11. Nxd4 {[%emt 0:00:47]} Bg6 {[%emt 0:04:34]} 12. O-O {[%emt 0:06:21]} Be7 {[%emt 0:01:46]} 13. a3 {[%emt 0:02:38]} N4d5 {[%emt 0:00:38]} 14. f4 {[%emt 0:02:40]} Bxe4 {[%emt 0:01:58]} 15. Bxe4 {[%emt 0:00:08]} O-O {[%emt 0:00:24]} 16. Qc2 {[%emt 0:03:26]} h6 {[%emt 0:01:12]} 17. Rd1 {[%emt 0:01:31]} c6 {[%emt 0:01:49]} (17... Qe8 $16 {is a better defense.}) 18. Bg2 {[%emt 0:01:24]} Qc7 {[%emt 0:09:12]} 19. e4 {[%emt 0:04:43]} Nf6 {[%emt 0:00:18]} 20. b3 {[%emt 0:01:08]} Rad8 {[%emt 0:17:40]} 21. Bb2 {[%emt 0:00:15]} Rfe8 {[%emt 0:05:01]} 22. Kh2 {[%emt 0:02:51]} Bf8 {[%emt 0:02:30]} 23. Nf5 {[%emt 0:04:24]} Nfd7 {[%emt 0:09:28]} (23... Re6 $16 24. Bf3 g6) 24. a4 {[%emt 0:07:58]} a5 {[%emt 0:03:51]} 25. Qc3 {[%emt 0:05:59]} Nf6 {[%emt 0:00:49]} 26. Nxh6+ {[%emt 0:01:21]} Kh7 {[%emt 0:00:39]} 27. Ng4 {[%emt 0:01:25]} Nxg4+ {[%emt 0:02:19]} 28. hxg4 {[%emt 0:00:07]} Nd7 {[%emt 0:00:16]} 29. e5 {[%emt 0:01:22]} Bb4 {[%emt 0:01:07]} 30. Qc2+ {[%emt 0:01:12]} Kg8 {[%emt 0:00:10]} 31. Bd4 {[%emt 0:02:15]} Nb6 {[%emt 0:01:42]} 32. Bc3 {[%emt 0:03:58]} (32. g5 $18 {has better winning chances.}) 32... Qe7 {[%emt 0:01:38]} (32... Nd5 $142 33. Bd4 Qc8) 33. Be4 {[%emt 0:01:50]} Nd5 {[%emt 0:03:17]} 34. Bxd5 {[%emt 0:00:28]} cxd5 {[%emt 0:01:23]} 35. Bd4 {[%emt 0:01:07]} Rc8 {[%emt 0:00:54]} 36. Qd3 {[%emt 0:01:03]} Qe6 {[%emt 0:00:53]} 37. f5 {[%emt 0:00:49]} Qh6+ {[%emt 0:00:16]} 38. Kg2 {[%emt 0:00:08]} Qg5 {[%emt 0:00:24]} (38... Bc5 $16 39. Rh1 Qa6 40. Qxa6 bxa6 41. Bxc5 Rxc5) 39. Kf3 {[%emt 0:01:07]} Rc6 {[%emt 0:04:44]} 40. Rh1 {[%emt 0:00:00]} Rh6 {[%emt 0:03:22]} 41. Be3 {[%emt 0:04:03]} Rxh1 {[%emt 0:00:11]} 42. Rxh1 {[%emt 0:00:11]} Qd8 {[%emt 0:00:26]} 43. f6 {[%emt 0:01:09]} g6 {[%emt 0:00:22]} 44. Bd4 $18 {[%emt 0:00:21]} (44. Rh6 $142 Re7 45. e6 Rxe6 {[#]} 46. Rxg6+ $1 {[%mdl 512]} Kf8 47. Bh6+ Ke8 48. Qb5+ Rc6 49. Rg8+ (49. Qxb7 Rxf6+ 50. Rxf6 Qxf6+ 51. Bf4 Qc3+ 52. Kg2 Qc2+ 53. Kh1 Qh7+ 54. Kg2 Qc2+ 55. Kh3 Qh7+ 56. Kg2 Qc2+ $11) 49... Kd7 50. Qxd5+ Rd6 51. Qxf7+ Kc8 52. Bf4) 44... Qa8 {[%emt 0:04:02]} 45. Qe3 {[%emt 0:01:51]} Bf8 {[%emt 0:00:26]} 46. Qd2 {[%emt 0:02:47]} Qa6 {[%emt 0:00:32]} 47. Kf4 {[%emt 0:01:10]} Bh6+ {[%emt 0:04:43]} 48. Rxh6 {[%emt 0:00:38]} Qf1+ {[%emt 0:00:06] Ke4} 1-0

[Event "RUS-ch Youth U21 Girls 2017"]
[Site "Loo"]
[Date "2017.04.22"]
[Round "3"]
[White "Dordzhieva, Dinara"]
[Black "Chernyak, Viktoria"]
[Result "0-1"]
[ECO "C00"]
[WhiteElo "2277"]
[BlackElo "2241"]
[Annotator "ChessBase"]
[PlyCount "82"]
[EventDate "2017.??.??"]
[EventType "tourn"]
[EventCountry "RUS"]
[SourceTitle "playchess.com"]
[Source "ChessBase"]
[SourceQuality "1"]
[TimeControl "40/5400+30:1800+30"]

1. e4 {[%emt 0:00:00]} e6 {[%emt 0:01:02]} 2. d3 {[%emt 0:00:00]} c5 {[%emt 0:00:36]} 3. Nf3 {[%emt 0:00:04]} Nc6 {[%emt 0:00:55]} 4. g3 {[%emt 0:00:05]} d5 {[%emt 0:02:03]} 5. Nbd2 {[%emt 0:00:04]} Nge7 {[%emt 0:04:59]} 6. Bg2 {[%emt 0:00:34]} g6 {[%emt 0:00:30]} 7. O-O {[%emt 0:04:44]} Bg7 {[%emt 0:00:12]} 8. Re1 {[%emt 0:01:21]} O-O {[%emt 0:01:19]} 9. c3 {[%emt 0:01:29]} Qc7 {[%emt 0:08:36]} 10. Qe2 {[%emt 0:14:36]} b6 {[%emt 0:02:48]} 11. e5 {[%emt 0:04:08]} a5 {[%emt 0:05:04]} 12. a4 {[%emt 0:08:56]} Ba6 {[%emt 0:01:46]} 13. h4 {[%emt 0:00:53]} Rab8 {[%emt 0:16:29]} 14. Nf1 {[%emt 0:03:08]} b5 {[%emt 0:01:30]} 15. axb5 {[%emt 0:01:37]} Rxb5 {[%emt 0:06:02]} 16. N1h2 {[%emt 0:05:14]} Kh8 {[%emt 0:17:46]} 17. h5 {[%emt 0:17:58]} Ng8 {[%emt 0:02:51]} 18. Bh3 {[%emt 0:10:22]} Bc8 {[%emt 0:03:07]} 19. d4 {[%emt 0:13:03]} Qb8 {[%emt 0:01:07]} 20. Bf1 {[%emt 0:00:48]} Na7 {[%emt 0:04:33]} 21. Qc2 {[%emt 0:01:45]} c4 {[%emt 0:02:05]} 22. Ng4 {[%emt 0:00:07]} f5 {[%emt 0:04:31]} 23. exf6 {[%emt 0:01:37]} Nxf6 {[%emt 0:00:10]} 24. Nxf6 {[%emt 0:04:13]} Rxf6 {[%emt 0:00:32]} 25. Ne5 {[%emt 0:01:56]} gxh5 {[%emt 0:00:33]} 26. Ra2 {[%emt 0:02:03]} Qb7 {[%emt 0:00:29]} 27. Qe2 {[%emt 0:00:50]} Nc6 {[%emt 0:00:42]} 28. Qxh5 {[%emt 0:00:31]} Nxe5 {[%emt 0:00:19]} 29. Rxe5 {[%emt 0:01:23]} Rf8 {[%emt 0:00:49]} 30. Re1 {[%emt 0:00:52]} Bd7 {[%emt 0:00:48]} 31. Bh3 {[%emt 0:00:20]} Rb6 {[%emt 0:03:08]} 32. Rxa5 {[%emt 0:00:35]} Rxb2 {[%emt 0:00:47]} 33. Be3 {[%emt 0:00:32]} Rc2 {[%emt 0:01:22]} 34. Rea1 {[%emt 0:00:31]} Rxc3 {[%emt 0:00:45]} 35. Bh6 {[%emt 0:00:36]} Bxh6 {[%emt 0:03:20]} 36. Qxh6 {[%emt 0:00:03]} Rcf3 {[%emt 0:00:08]} 37. R1a2 {[%emt 0:01:00]} Qb1+ {[%emt 0:00:31]} 38. Bf1 {[%emt 0:00:22]} Rxg3+ {[%emt 0:01:01]} 39. fxg3 {[%emt 0:00:37]} Rxf1+ {[%emt 0:00:12]} 40. Kg2 {[%emt 0:00:00]} Rg1+ {[%emt 0:00:04]} 41. Kf3 {[%emt 0:04:51]} Qe4+ {[%emt 0:00:19]} 0-1